bitfinex-derivatives/quotes_SOLF0:USTF0_20250524
["timestamp","ask_amount","ask_price","bid_price","bid_amount"]
[1748063532810,0.0427244,175.57,175.53,0.04323634]
[1748063533113,5.6949,175.56,175.53,0.04323634]
[1748063535415,5.6949,175.56,175.53,5.73903634]
[1748063535614,5.7374244,175.57,175.53,5.73903634]
[1748063535914,0.0427244,175.57,175.53,0.04323634]
[1748063536115,5.6949,175.56,175.53,0.04323634]
[1748063536514,0.0427244,175.57,175.53,5.73903634]
[1748063536818,5.7373244,175.57,175.53,5.73903634]
[1748063538114,5.695,175.56,175.53,5.73903634]
[1748063539217,5.6952,175.55,175.53,0.04323634]
[1748063539611,0.0427244,175.57,175.53,0.04323634]
[1748063540017,5.6951,175.56,175.53,5.73903634]
[1748063541018,5.6949,175.56,175.53,0.04323634]
[1748063541819,0.0427244,175.57,175.53,0.04323634]
[1748063543019,5.6953,175.55,175.53,0.04323634]
[1748063548228,5.6955,175.54,175.53,0.04323634]
[1748063548633,0.0427244,175.57,175.53,0.04323634]
[1748063548832,5.6954,175.55,175.53,0.04323634]
[1748063549132,0.0427244,175.57,175.53,0.04323634]
[1748063550033,5.6954,175.55,175.53,0.04323634]
[1748063550832,5.6955,175.54,175.53,0.04323634]
[1748063552525,0.0427244,175.57,175.53,0.04323634]
[1748063552722,5.22822231,175.55,175.45,114.84]
[1748063552924,5.697,175.5,175.45,114.84]
[1748063553338,5.697,175.5,175.46,5.6979]
[1748063553629,3.36708566,175.49,175.46,5.6979]
[1748063554126,3.36708566,175.49,175.45,120.5383]
[1748063554321,9.06428566,175.49,175.45,120.5383]
[1748063554526,3.36708566,175.49,175.45,120.5383]
[1748063554727,3.36708566,175.49,175.46,5.698]
[1748063555129,3.36708566,175.49,175.45,114.84]
[1748063555332,3.36708566,175.49,175.45,120.5383]
[1748063555533,9.06448566,175.49,175.45,5.6983]
[1748063555831,5.6974,175.49,175.45,5.6983]
[1748063556033,0.03661805,175.5,175.45,5.6983]
[1748063556636,5.6973,175.49,175.45,5.6983]
[1748063559332,0.03661805,175.5,175.45,5.6983]
[1748063560337,5.73351805,175.5,175.45,5.6983]
[1748063560934,5.29790215,175.5,175.38,5.20467793]
[1748063561136,0.04076092,175.46,175.38,5.20467793]
[1748063561939,0.04076092,175.46,175.38,5.12726045]
[1748063562642,5.73896092,175.46,175.41,5.6997]
[1748063562830,9.49,175.45,175.41,5.6997]
[1748063563738,11.4317,175.45,175.41,5.6997]
[1748063564538,11.4317,175.45,175.38,5.12726045]
[1748063565142,11.4317,175.45,175.41,5.6995]
[1748063565741,11.4317,175.45,175.42,5.6993]
[1748063568436,11.4317,175.45,175.37,114.86]
[1748063569741,11.4317,175.45,175.42,5.6992]
[1748063572737,9.49,175.45,175.38,5.2612841]
[1748063572937,9.49,175.45,175.38,10.37430247]
[1748063573644,9.49,175.45,175.44,5.6988]
[1748063574943,0.7611,175.45,175.44,5.6988]
[1748063575145,114.84,175.56,175.43,108.28]
[1748063575335,114.84,175.56,175.44,5.2612841]
[1748063575638,120.5351,175.56,175.51,5.6962]
[1748063575829,114.84,175.56,175.48,114.84]
[1748063576237,0.03939701,175.53,175.5,0.04311211]
[1748063576436,0.03939701,175.53,175.52,5.6961]
[1748063576840,0.03939701,175.53,175.52,120.5361]
[1748063577236,13.99595048,175.6,175.57,5.6944]
[1748063577842,13.99595048,175.6,175.56,5.6949]
[1748063578243,0.04094914,175.6,175.56,5.73124074]
[1748063579347,0.04094914,175.6,175.56,0.03634074]
[1748063579948,0.04094914,175.6,175.57,5.6945]
[1748063580544,0.04094914,175.6,175.56,0.03634074]
[1748063580744,0.04094914,175.6,175.56,114.87634074]
[1748063581645,0.04094914,175.6,175.59,5.6939]
[1748063582644,0.04094914,175.6,175.58,5.6941]
[1748063584344,0.04094914,175.6,175.56,114.87634074]
[1748063585242,0.04094914,175.6,175.58,5.694]
[1748063586240,0.04094914,175.6,175.56,120.57094074]
[1748063586441,0.04094914,175.6,175.56,114.87634074]
[1748063587341,0.04094914,175.6,175.56,0.03634074]
[1748063587643,5.6943,175.58,175.56,0.03634074]
[1748063587843,0.04094914,175.6,175.56,0.03634074]
[1748063588351,5.694,175.59,175.56,0.03634074]
[1748063590851,0.04094914,175.6,175.56,0.03634074]
[1748063591245,120.0412841,175.59,175.56,0.03634074]
[1748063592551,5.6954,175.55,175.51,5.6964]
[1748063592850,120.0412841,175.59,175.48,114.78]
[1748063593047,5.2612841,175.56,175.48,114.78]
[1748063593245,3.8493,175.55,175.48,114.78]
[1748063593447,118.6293,175.55,175.45,607.16]
[1748063593651,0.03616177,175.52,175.48,0.03788661]
[1748063593855,5.6965,175.51,175.48,0.03788661]
[1748063594155,0.03616177,175.52,175.48,0.03788661]
[1748063594349,5.6969,175.5,175.48,0.03788661]
[1748063595153,5.6971,175.49,175.48,0.03788661]
[1748063602361,0.03616177,175.52,175.48,0.03788661]
[1748063602858,5.6971,175.49,175.48,0.03788661]
[1748063604468,0.03616177,175.52,175.48,0.03788661]
[1748063605162,0.03616177,175.52,175.48,5.73518661]
[1748063605367,0.03616177,175.52,175.48,0.03788661]
[1748063605765,0.03616177,175.52,175.49,5.6971]
[1748063606864,5.73246177,175.52,175.48,5.73528661]
[1748063607163,0.03616177,175.52,175.48,0.03788661]
[1748063608767,5.6966,175.51,175.48,0.03788661]
[1748063609978,5.6969,175.5,175.48,0.03788661]
[1748063615573,5.6966,175.51,175.48,0.03788661]
[1748063616475,0.03616177,175.52,175.48,0.03788661]
[1748063617177,0.03616177,175.52,175.51,5.6965]
[1748063617672,0.03616177,175.52,175.48,0.03788661]
[1748063618578,0.03616177,175.52,175.49,5.6969]
[1748063619176,0.03616177,175.52,175.48,5.73528661]
[1748063619378,5.73246177,175.52,175.48,5.73528661]
[1748063620973,114.78,175.51,175.42,5.6992]
[1748063621180,118.5709,175.51,175.39,5.20467793]
[1748063621374,123.8321841,175.51,175.38,5.20467793]
[1748063621677,5.6974,175.49,175.43,5.6988]
[1748063621870,123.8321841,175.51,175.43,5.6988]
[1748063622074,5.6977,175.48,175.45,0.02010564]
[1748063624381,5.6978,175.47,175.45,0.02010564]
[1748063626778,5.6977,175.48,175.45,0.02010564]
[1748063632692,0.03791511,175.49,175.45,0.02010564]
[1748063633288,0.03791511,175.49,175.46,5.6981]
[1748063634795,0.03791511,175.49,175.45,0.02010564]
[1748063635097,5.6977,175.48,175.45,0.02010564]
[1748063636197,5.73521511,175.49,175.45,0.02010564]
[1748063636390,0.03791511,175.49,175.45,0.02010564]
[1748063636789,0.03791511,175.49,175.46,5.6981]
[1748063637999,0.03791511,175.49,175.47,5.6978]
[1748063639801,0.03791511,175.49,175.48,5.6975]
[1748063651895,0.03791511,175.49,175.47,5.6977]
[1748063655501,0.03791511,175.49,175.48,5.6975]
[1748063663613,1.511e-05,175.49,175.48,5.6975]
[1748063665604,610.9617,175.61,175.55,5.6951]
[1748063666313,5.6938,175.6,175.55,5.6951]
[1748063666509,610.9617,175.61,175.55,5.6951]
[1748063666711,0.04253727,175.6,175.56,0.03881022]
[1748063667313,5.6941,175.59,175.56,0.03881022]
[1748063668510,5.6944,175.58,175.56,0.03881022]
[1748063674518,5.6946,175.57,175.56,0.03881022]
[1748063677317,125.6812841,175.57,175.46,114.72]
[1748063677518,119.9812841,175.57,175.46,114.72]
[1748063678122,5.6964,175.52,175.48,5.6972]
[1748063679323,5.6965,175.51,175.48,5.6972]
[1748063679617,0.03850147,175.53,175.48,5.6972]
[1748063679822,0.03850147,175.53,175.46,114.72]
[1748063680013,5.6964,175.52,175.46,114.72]
[1748063680420,5.6964,175.52,175.48,5.6973]
[1748063681019,5.6964,175.52,175.46,120.4178]
[1748063682324,5.6964,175.52,175.47,5.6977]
[1748063682721,5.6964,175.52,175.46,114.72]
[1748063683324,5.6964,175.52,175.46,120.418]
[1748063684524,5.6965,175.51,175.46,120.418]
[1748063684921,0.03850147,175.53,175.46,120.418]
[1748063685119,5.6965,175.51,175.46,120.418]
[1748063686225,5.697,175.5,175.46,114.72]
[1748063686524,0.03850147,175.53,175.46,114.72]
[1748063686727,5.6967,175.51,175.46,114.72]
[1748063687526,5.6962,175.52,175.46,114.72]
[1748063688327,5.6962,175.52,175.46,120.4179]
[1748063690031,5.6962,175.52,175.47,5.6977]
[1748063693335,5.6962,175.52,175.46,114.72]
[1748063694633,5.6962,175.52,175.47,5.6977]
[1748063695429,5.6962,175.52,175.46,120.418]
[1748063696526,5.29978557,175.53,175.44,5.6985]
[1748063696732,0.04183719,175.5,175.44,5.6985]
[1748063696934,0.04183719,175.5,175.41,119.90467793]
[1748063697634,3.36754736,175.49,175.41,123.27222529]
[1748063697834,9.06494736,175.49,175.43,5.6989]
[1748063699631,5.6974,175.49,175.43,5.6989]
[1748063699935,5.6974,175.49,175.44,5.6987]
[1748063700428,5.6974,175.49,175.43,5.6989]
[1748063702838,5.6977,175.48,175.42,5.6994]
[1748063703338,5.6975,175.48,175.42,5.6994]
[1748063703530,0.04183719,175.5,175.41,114.7]
[1748063703733,0.03849994,175.47,175.41,114.7]
[1748063704636,0.03849994,175.47,175.42,5.6993]
[1748063707843,0.03849994,175.47,175.41,114.7]
[1748063708142,0.03849994,175.47,175.41,119.96179197]
[1748063708939,0.03849994,175.47,175.41,114.7]
[1748063709842,0.03849994,175.47,175.43,5.699]
[1748063710339,0.03849994,175.47,175.42,5.6991]
[1748063710540,0.03849994,175.47,175.41,114.7]
[1748063710940,0.03849994,175.47,175.42,5.6993]
[1748063711237,0.03849994,175.47,175.41,114.7]
[1748063711443,5.73629994,175.47,175.41,120.3995]
[1748063711642,0.03849994,175.47,175.41,114.7]
[1748063712441,5.6983,175.46,175.41,114.7]
[1748063715141,5.6983,175.46,175.41,120.3997]
[1748063715531,5.6983,175.46,175.41,114.7]
[1748063718146,0.03849994,175.47,175.41,114.7]
[1748063718843,5.6983,175.46,175.41,114.7]
[1748063719444,5.6983,175.46,175.41,120.3996]
[1748063720142,9.10453612,175.47,175.41,120.3996]
[1748063720752,9.10453612,175.47,175.42,5.6993]
[1748063720944,9.10453612,175.47,175.41,114.7]
[1748063721244,3.40673612,175.47,175.42,5.6993]
[1748063721441,0.03849994,175.47,175.41,114.7]
[1748063721646,0.03849994,175.47,175.42,3.36823618]
[1748063722444,0.03849994,175.47,175.41,114.7]
[1748063722748,5.6982,175.46,175.41,120.3996]
[1748063723946,5.73629994,175.47,175.42,5.6992]
[1748063725245,0.03849994,175.47,175.43,5.699]
[1748063726147,5.73619994,175.47,175.43,5.699]
[1748063726348,5.73619994,175.47,175.42,5.6992]
[1748063729247,5.6981,175.46,175.42,5.6992]
[1748063729644,0.03849994,175.47,175.42,5.6992]
[1748063730152,5.73649994,175.47,175.42,5.6992]
[1748063731150,5.73649994,175.47,175.43,5.699]
[1748063732145,3.36823618,175.46,175.38,114.68]
[1748063732450,3.41072592,175.44,175.38,114.68]
[1748063733652,3.41072592,175.44,175.4,5.6997]
[1748063734052,3.36823618,175.42,175.35,114.68]
[1748063734350,0.04323988,175.4,175.35,114.68]
[1748063734751,0.04323988,175.4,175.36,5.7013]
[1748063735357,3.41147606,175.4,175.36,5.7013]
[1748063735652,9.11177606,175.4,175.35,114.68]
[1748063736260,9.11177606,175.4,175.35,120.3814]
[1748063736668,9.11177606,175.4,175.35,114.68]
[1748063736865,3.41147606,175.4,175.36,5.7011]
[1748063737167,3.41147606,175.4,175.35,114.68]
[1748063738168,9.11117606,175.4,175.35,120.3814]
[1748063738667,5.6999,175.39,175.35,114.68]
[1748063738866,3.41147606,175.4,175.35,114.68]
[1748063739364,3.41147606,175.4,175.35,120.3808]
[1748063739969,9.11117606,175.4,175.35,120.3808]
[1748063740267,3.41147606,175.4,175.36,5.7006]
[1748063740468,3.41147606,175.4,175.35,114.68]
[1748063740666,3.41147606,175.4,175.31,114.7]
[1748063740871,0.04300733,175.37,175.32,3.36823618]
[1748063741970,0.04300733,175.37,175.34,5.7012]
[1748063742168,0.04300733,175.37,175.31,114.7]
[1748063742371,0.04300733,175.37,175.31,118.06823618]
[1748063742572,0.04300733,175.37,175.33,5.7015]
[1748063743274,0.04300733,175.37,175.34,5.7014]
[1748063743475,0.04300733,175.37,175.31,114.7]
[1748063743873,3.41124351,175.37,175.31,114.7]
[1748063744075,0.04300733,175.37,175.31,114.7]
[1748063744376,3.41124351,175.37,175.31,114.7]
[1748063744569,0.04300733,175.37,175.31,114.7]
[1748063744873,0.04300733,175.37,175.31,118.06823618]
[1748063745177,5.74370733,175.37,175.31,123.77053618]
[1748063745876,5.74370733,175.37,175.32,5.702]
[1748063746172,0.04300733,175.37,175.31,118.06823618]
[1748063746574,0.04300733,175.37,175.32,5.702]
[1748063746874,0.04300733,175.37,175.31,118.06823618]
[1748063748680,0.04300733,175.37,175.34,5.7013]
[1748063749076,0.04300733,175.37,175.31,118.06823618]
[1748063749379,0.04300733,175.37,175.34,5.7012]
[1748063750177,0.04300733,175.37,175.31,118.06823618]
[1748063750578,5.7009,175.36,175.31,118.06823618]
[1748063751480,5.7009,175.36,175.31,123.77043618]
[1748063751680,5.74350733,175.37,175.31,118.06823618]
[1748063751978,0.04300733,175.37,175.31,118.06823618]
[1748063752181,0.04300733,175.37,175.33,5.7017]
[1748063752479,0.04300733,175.37,175.31,118.06823618]
[1748063752778,0.04300733,175.37,175.34,5.7014]
[1748063754582,0.04300733,175.37,175.33,5.7017]
[1748063755581,0.04300733,175.37,175.34,5.7014]
[1748063756672,0.04300733,175.37,175.33,5.7017]
[1748063757786,0.04300733,175.37,175.32,5.7019]
[1748063757986,0.04300733,175.37,175.31,118.06823618]
[1748063758185,3.41124351,175.37,175.31,114.7]
[1748063758385,0.04300733,175.37,175.31,118.06823618]
[1748063759276,0.04300733,175.37,175.33,3.36823618]
[1748063759483,0.04300733,175.37,175.34,5.7011]
[1748063761691,0.04300733,175.37,175.35,5.7011]
[1748063762086,0.04300733,175.37,175.35,118.04823618]
[1748063762284,0.04300733,175.37,175.36,5.7008]
[1748063763689,9.06633618,175.45,175.35,118.04823618]
[1748063763886,9.06633618,175.45,175.38,3.36823618]
[1748063764192,5.6987,175.43,175.37,5.7002]
[1748063764387,5.6987,175.43,175.36,3.36823618]
[1748063764683,0.0412544,175.41,175.38,0.03977049]
[1748063766682,0.0412544,175.41,175.39,5.6996]
[1748063767587,0.0412544,175.41,175.38,0.03977049]
[1748063767782,0.0412544,175.41,175.38,5.73977049]
[1748063767987,3.36823618,175.4,175.38,0.03977049]
[1748063768491,5.6998,175.39,175.38,0.03977049]
[1748063768893,5.7013,175.35,175.31,119.88467793]
[1748063769189,3.36823618,175.36,175.31,119.88467793]
[1748063769585,5.7013,175.35,175.31,119.88467793]
[1748063769794,5.74241411,175.35,175.31,119.90794433]
[1748063769985,5.7017,175.34,175.31,119.90794433]
[1748063771291,0.04111411,175.35,175.28,6.90089094]
[1748063771493,0.04111411,175.35,175.24,5.26963058]
[1748063771789,114.68,175.36,175.25,114.68]
[1748063771790,5.702,175.33,175.25,114.68]
[1748063772095,114.68,175.36,175.25,114.68]
[1748063772296,0.03821548,175.31,175.25,114.68]
[1748063772801,0.03821548,175.31,175.27,5.7037]
[1748063773296,0.03821548,175.31,175.25,114.68]
[1748063773496,0.03821548,175.31,175.26,5.704]
[1748063773797,0.03821548,175.31,175.25,114.68]
[1748063775603,0.03821548,175.31,175.28,5.7033]
[1748063775998,0.03821548,175.31,175.25,114.68]
[1748063777000,5.7028,175.3,175.25,120.3841]
[1748063778300,5.7031,175.29,175.25,120.3841]
[1748063778494,5.7031,175.29,175.25,114.68]
[1748063778689,0.03821548,175.31,175.25,114.68]
[1748063778997,5.7028,175.3,175.25,120.3841]
[1748063779198,0.03821548,175.31,175.25,120.3841]
[1748063779799,5.74071548,175.31,175.26,5.704]
[1748063780702,5.7028,175.3,175.25,120.3843]
[1748063781097,0.03821548,175.31,175.25,114.68]
[1748063781397,5.7032,175.29,175.25,114.68]
[1748063782099,5.7032,175.29,175.25,120.3843]
[1748063782796,5.7028,175.3,175.25,120.3843]
[1748063783001,5.7028,175.3,175.26,5.704]
[1748063783703,5.7028,175.3,175.25,120.3842]
[1748063784302,5.7031,175.29,175.25,120.3842]
[1748063784901,5.30784606,175.31,175.22,116.7408]
[1748063785103,0.03733972,175.28,175.22,116.7408]
[1748063786204,0.03733972,175.28,175.23,5.7047]
[1748063786707,5.704,175.26,175.22,120.4253]
[1748063788203,0.03733972,175.28,175.22,114.72]
[1748063788402,0.03733972,175.28,175.21,5.7056]
[1748063788898,0.03733972,175.28,175.21,5.7054]
[1748063789100,0.03733972,175.28,175.19,115.0]
[1748063789495,5.7046,175.25,175.21,5.7054]
[1748063790307,5.7046,175.25,175.19,115.0]
[1748063790508,0.03659579,175.24,175.19,115.0]
[1748063790812,0.03659579,175.24,175.21,5.7054]
[1748063791007,5.74129579,175.24,175.21,5.7054]
[1748063791209,5.74129579,175.24,175.19,115.0]
[1748063791702,0.03659579,175.24,175.19,115.0]
[1748063792313,5.74129579,175.24,175.19,115.0]
[1748063793211,0.03659579,175.24,175.2,5.7059]
[1748063793413,0.03659579,175.24,175.19,115.0]
[1748063793706,5.7053,175.23,175.19,115.0]
[1748063794406,0.03659579,175.24,175.19,115.0]
[1748063794911,0.03659579,175.24,175.21,5.7056]
[1748063796212,5.74129579,175.24,175.19,120.7062]
[1748063796411,0.03659579,175.24,175.19,115.0]
[1748063797112,0.03659579,175.24,175.21,5.7054]
[1748063798417,0.03659579,175.24,175.12,3.37626555]
[1748063798711,0.03912361,175.2,175.16,3.37626555]
[1748063798908,0.03912361,175.2,175.17,115.02]
[1748063799111,0.03912361,175.2,175.19,5.7061]
[1748063808227,2.361e-05,175.2,175.19,5.7061]
[1748063808726,7.6998,175.3,175.25,5.7041]
[1748063808927,1.9971,175.3,175.25,5.7041]
[1748063809227,5.7025,175.31,175.26,5.704]
[1748063809527,0.0425895,175.3,175.27,0.03912361]
[1748063810220,0.0425895,175.3,175.28,5.7031]
[1748063810621,0.0425895,175.3,175.27,0.03912361]
[1748063810926,0.0425895,175.3,175.28,5.7034]
[1748063811628,0.0425895,175.3,175.29,5.7031]
[1748063814828,0.0425895,175.3,175.28,115.02]
[1748063816236,0.0425895,175.3,175.28,120.7233]
[1748063817435,0.0425895,175.3,175.28,115.02]
[1748063817837,0.0425895,175.3,175.28,120.7233]
[1748063818137,0.0425895,175.3,175.28,115.02]
[1748063819437,0.0425895,175.3,175.29,5.7031]
[1748063821032,0.0425895,175.3,175.28,120.7233]
[1748063821226,0.0425895,175.3,175.28,115.02]
[1748063821630,0.0425895,175.3,175.27,5.74262361]
[1748063821835,0.0425895,175.3,175.27,0.03912361]
[1748063822840,5.7455895,175.3,175.27,0.03912361]
[1748063823245,0.0425895,175.3,175.27,0.03912361]
[1748063823434,5.7453895,175.3,175.27,0.03912361]
[1748063823739,0.0425895,175.3,175.27,0.03912361]
[1748063823941,5.7031,175.29,175.27,0.03912361]
[1748063824545,5.7453895,175.3,175.27,0.03912361]
[1748063825538,0.0425895,175.3,175.27,0.03912361]
[1748063826244,0.0425895,175.3,175.27,5.74262361]
[1748063827138,0.0425895,175.3,175.27,0.03912361]
[1748063827845,0.0425895,175.3,175.28,5.7034]
[1748063828140,0.0425895,175.3,175.27,0.03912361]
[1748063828337,5.7453895,175.3,175.28,115.22]
[1748063829141,0.0425895,175.3,175.28,115.22]
[1748063829538,0.0425895,175.3,175.28,120.9231]
[1748063829739,0.0425895,175.3,175.28,115.22]
[1748063830146,0.0425895,175.3,175.28,120.9234]
[1748063830448,0.0425895,175.3,175.28,115.22]
[1748063831550,0.0425895,175.3,175.29,5.7031]
[1748063833448,0.0425895,175.3,175.28,115.2]
[1748063835546,0.0425895,175.3,175.28,120.9033]
[1748063835746,0.0425895,175.3,175.28,115.2]
[1748063836043,0.0425895,175.3,175.27,0.03912361]
[1748063836949,5.7034,175.28,175.27,0.03912361]
[1748063837352,0.0425895,175.3,175.21,120.50773273]
[1748063837547,5.7043,175.26,175.22,5.7052]
[1748063838252,5.74679391,175.26,175.22,5.7052]
[1748063841753,5.7044,175.25,175.21,5.7056]
[1748063842251,5.7049,175.24,175.2,115.22]
[1748063842752,0.04249391,175.26,175.2,115.22]
[1748063843741,5.7052,175.23,175.2,115.22]
[1748063843963,0.04249391,175.26,175.2,115.22]
[1748063844551,5.7054,175.22,175.2,115.22]
[1748063844953,5.7054,175.22,175.18,120.9465]
[1748063845149,5.7054,175.22,175.18,115.24]
[1748063845150,0.03901691,175.22,175.18,115.24]
[1748063846154,0.03901691,175.22,175.2,5.7058]
[1748063846455,0.03901691,175.22,175.18,115.24]
[1748063847659,0.03901691,175.22,175.19,5.7061]
[1748063848358,0.03901691,175.22,175.18,120.9465]
[1748063848762,0.03901691,175.22,175.18,115.24]
[1748063849658,0.03901691,175.22,175.19,5.7061]
[1748063851157,0.03901691,175.22,175.18,120.9466]
[1748063851359,0.03901691,175.22,175.18,115.24]
[1748063851658,5.74441691,175.22,175.18,120.9466]
[1748063852257,0.03901691,175.22,175.11,5.30773273]
[1748063852558,0.03767132,175.18,175.12,115.48]
[1748063853957,0.03767132,175.18,175.13,5.05565792]
[1748063854151,0.03767132,175.18,175.14,223.9]
[1748063855367,0.03767132,175.18,175.17,5.707]
[1748063856063,0.03767132,175.18,175.09,5.30773273]
[1748063856364,0.03767132,175.18,175.1,223.9]
[1748063856555,0.03767132,175.18,175.14,5.7077]
[1748063856761,0.03767132,175.18,175.14,121.1877]
[1748063857666,0.03767132,175.18,175.15,5.7076]
[1748063858168,0.03767132,175.18,175.14,115.48]
[1748063858367,0.03767132,175.18,175.14,121.1877]
[1748063858557,0.03767132,175.18,175.14,115.48]
[1748063859468,0.03767132,175.18,175.14,5.7079]
[1748063859668,0.03767132,175.18,175.09,5.27542229]
[1748063859968,0.03767132,175.18,175.11,108.44]
[1748063860567,0.03767132,175.18,175.15,5.7076]
[1748063860869,0.03767132,175.18,175.14,115.5]
[1748063861966,0.03767132,175.18,175.17,5.707]
[1748063867064,0.03767132,175.18,175.16,5.7072]
[1748063867371,0.03767132,175.18,175.14,115.5]
[1748063867574,0.03767132,175.18,175.15,5.7074]
[1748063867770,0.03767132,175.18,175.14,115.5]
[1748063869173,0.03767132,175.18,175.15,5.7074]
[1748063871274,0.03767132,175.18,175.14,121.2079]
[1748063871670,0.03767132,175.18,175.14,115.5]
[1748063872876,5.74427132,175.18,175.14,121.2077]
[1748063873374,0.03767132,175.18,175.14,115.5]
[1748063873771,0.03767132,175.18,175.15,5.7074]
[1748063875178,0.03767132,175.18,175.16,5.7073]
[1748063876278,0.03767132,175.18,175.15,5.7075]
[1748063878286,5.74447132,175.18,175.14,121.2078]
[1748063878582,0.03767132,175.18,175.14,115.5]
[1748063878771,0.03767132,175.18,175.17,5.707]
[1748063880680,3.7971,175.27,175.15,7.0447065]
[1748063880884,117.8081,175.3,175.16,5.27542229]
[1748063881078,1.8681,175.3,175.16,5.27542229]
[1748063881274,5.7036,175.28,175.23,5.7048]
[1748063881583,1.8681,175.3,175.22,115.94]
[1748063881784,0.04150733,175.27,175.22,115.94]
[1748063881972,0.04150733,175.27,175.25,5.7041]
[1748063882279,0.04150733,175.27,175.24,0.03767132]
[1748063882775,0.04150733,175.27,175.26,5.704]
[1748063883077,0.04150733,175.27,175.24,0.03767132]
[1748063883288,0.04150733,175.27,175.25,5.7042]
[1748063884984,0.04150733,175.27,175.24,5.74237132]
[1748063885687,0.04150733,175.27,175.25,5.7043]
[1748063888686,0.04150733,175.27,175.24,0.03767132]
[1748063889186,0.04150733,175.27,175.25,5.7041]
[1748063892387,0.04150733,175.27,175.24,5.74237132]
[1748063892993,0.04150733,175.27,175.17,5.30773273]
[1748063893295,5.27542229,175.25,175.17,5.30773273]
[1748063893484,5.706,175.21,175.17,5.30773273]
[1748063893685,1.8964,175.24,175.17,5.30773273]
[1748063893885,1.8964,175.24,175.15,1.9849]
[1748063894085,1.8964,175.24,175.17,5.7067]
[1748063894086,0.0391207,175.21,175.17,5.7067]
[1748063895191,5.706,175.2,175.15,7.6922]
[1748063895489,5.706,175.2,175.15,1.9849]
[1748063896480,5.7448207,175.21,175.16,5.7072]
[1748063897595,5.706,175.2,175.15,5.7076]
[1748063899194,5.706,175.2,175.14,123.5769]
[1748063899997,5.7448207,175.21,175.15,5.7075]
[1748063900201,5.7448207,175.21,175.14,117.869]
[1748063900493,0.0391207,175.21,175.14,117.869]
[1748063900694,0.0391207,175.21,175.16,5.707]
[1748063901900,5.7449207,175.21,175.15,5.7075]
[1748063902103,0.0391207,175.21,175.15,5.7075]
[1748063902498,0.0391207,175.21,175.16,5.7071]
[1748063902700,0.0391207,175.21,175.14,117.869]
[1748063903001,0.0391207,175.21,175.17,5.707]
[1748063903205,0.0391207,175.21,175.18,115.92]
[1748063905803,0.0391207,175.21,175.18,121.6266]
[1748063906103,0.0391207,175.21,175.18,115.92]
[1748063907204,0.0391207,175.21,175.18,121.6266]
[1748063909699,0.0391207,175.21,175.18,115.92]
[1748063910305,0.0391207,175.21,175.18,121.6266]
[1748063911101,0.0391207,175.21,175.19,5.7062]
[1748063911709,0.0391207,175.21,175.2,5.706]
[1748063912004,0.0391207,175.21,175.18,115.92]
[1748063912305,0.0391207,175.21,175.19,5.7062]
[1748063913109,0.0391207,175.21,175.18,121.6266]
[1748063919312,0.0391207,175.21,175.18,115.92]
[1748063920610,5.7448207,175.21,175.18,121.6265]
[1748063921212,0.0391207,175.21,175.18,115.92]
[1748063921414,0.0391207,175.21,175.18,121.6266]
[1748063923608,0.0391207,175.21,175.18,115.92]
[1748063923813,0.0391207,175.21,175.19,5.7062]
[1748063924619,0.0391207,175.21,175.2,5.706]
[1748063924816,5.27542229,175.3,175.18,115.92]
[1748063925218,5.7041,175.26,175.22,5.7053]
[1748063925403,5.7041,175.26,175.22,122.0653]
[1748063925808,5.74713317,175.26,175.22,122.10159141]
[1748063927213,0.04303317,175.26,175.23,5.7049]
[1748063930018,0.04303317,175.26,175.22,122.10149141]
[1748063930712,0.04303317,175.26,175.23,5.7047]
[1748063931213,0.04303317,175.26,175.24,5.7046]
[1748063933220,0.04303317,175.26,175.22,116.39629141]
[1748063933821,0.04303317,175.26,175.23,5.705]
[1748063934520,0.04303317,175.26,175.22,122.10159141]
[1748063935218,5.74713317,175.26,175.23,5.705]
[1748063936117,0.04303317,175.26,175.23,5.705]
[1748063936817,0.04303317,175.26,175.22,0.03629141]
[1748063937423,5.7046,175.25,175.22,5.74159141]
[1748063938926,5.7047,175.24,175.22,0.03629141]